Cogmind - Beta 15 @@@ ROGUE MODE // 2025.08.09 @ 14:17:13 Player: saltine Result: Destroyed self with Mini Grenade Launcher Performance ------------- Evolutions (2) 1000 Regions Visited (7) 1400 Robots Destroyed (143) 715 Value Destroyed (3644) 3644 Prototype IDs (43) 860 Alien Tech Used (0) 0 Bonus (621) 621 TOTAL SCORE: 8240 Bonus ------- High Alert Combat Kills 233 Follower Combat Kills 88 Aligned with FarCom 300 Cogmind --------- Core Integrity 0/550 Matter 190/300 Energy 100/100 System Corruption 3% Temperature Cool (0) Movement Core (1350) Ox26 Location -8/Materials Parts ------- > --- POWER (1) -------- (None) > --- PROPULSION (2) --- (None) > --- UTILITY (5) ------ Huge Storage Unit > --- WEAPON (3) ------- Mini Grenade Launcher > --- INVENTORY (25) --- Deuterium Engine Reinforced Fission Core Combat Antigrav System High-capacity Matter Pod (200) Seismic Detector Experimental Targeting Computer Experimental Core Analyzer Improved Utility Shielding Medium Armor Plating Hardened Medium Armor Plating Hacking Suite System Purifier High-powered Tractor Beam Sensor Drone Bay (20/20) Heavy EM Shotgun Heavy EM Shotgun Gatling Laser Heavy Particle Cannon 8R-AWN's Boregun Heavy Assault Cannon Improved Datajack Katana Peak State ------------ > --- POWER ------------ Deuterium Engine > --- PROPULSION ------- Armored Wheel Armored Wheel > --- UTILITY ---------- Cooling System Huge Storage Unit Hardened Light Armor Plating Hardened Medium Armor Plating Improved Light Armor Plating > --- WEAPON ----------- Heavy EM Shotgun Heavy EM Shotgun Heavy EM Shotgun > --- INVENTORY -------- Cold Fusion Reactor Reinforced Fission Core Advanced Treads Combat Antigrav System High-capacity Matter Pod Seismic Detector Experimental Targeting Computer Experimental Core Analyzer Improved Utility Shielding Medium Armor Plating Hardlight Generator Hacking Suite System Purifier High-powered Tractor Beam Sensor Drone Bay Gatling Laser Gatling Laser Gatling Laser Gatling Laser Heavy Particle Cannon 8R-AWN's Boregun Mini Grenade Launcher Mini Grenade Launcher Improved Datajack Katana [Rating: 41] Favorites ----------- Power Heavy Ion Engine Engine Heavy Ion Engine Power Core Light Neutrino Core Reactor Cold Fusion Reactor Propulsion Light Treads Treads Light Treads Leg Advanced Myomer Leg Wheel Armored Wheel Utility Medium Armor Plating Device Seismic Detector Storage Huge Storage Unit Protection Medium Armor Plating Weapon Heavy Assault Rifle Energy Gun Heavy EM Shotgun Energy Cannon Advanced Beam Cannon Ballistic Gun Heavy Assault Rifle Ballistic Cannon Improved Light Cannon Launcher Rocket Launcher Slashing Weapon Katana Build | -11 -10 -10 -9 -9 -9 -8 -8 ------- Run | Yrd Mat Min Mat Min Exi Min Mat Slots Evolved 4 | . . . 2 . . . 2 Power . | . . . . . . . . Propulsion . | . . . . . . . . Utility 3 | . . . 1 . . . 2 Weapon 1 | . . . 1 . . . . Parts Attached 69 | 7 6 3 17 2 14 2 18 Power 6 | 1 . . 2 . 1 . 2 Engine 4 | 1 . . 2 . . . 1 Core 1 | . . . . . 1 . . Reactor 1 | . . . . . . . 1 Propulsion 12 | 2 2 . 2 2 1 1 2 Treads 7 | 2 2 . 2 . . . 1 Leg 1 | . . . . . 1 . . Wheel 4 | . . . . 2 . 1 1 Hover . | . . . . . . . . Flight . | . . . . . . . . Utility 23 | 2 2 2 7 . 4 1 5 Device 8 | 1 1 2 . . 2 . 2 Storage 4 | 1 1 . 1 . . 1 . Processor . | . . . . . . . . Hackware . | . . . . . . . . Protection 11 | . . . 6 . 2 . 3 Artifact . | . . . . . . . . Weapon 28 | 2 2 1 6 . 8 . 9 Energy Gun 6 | . . . . . . . 6 Energy Cannon 2 | . . . 1 . . . 1 Ballistic Gun 12 | 2 2 . 4 . 3 . 1 Ballistic Cannon 1 | . . . 1 . . . . Launcher 4 | . . 1 . . 2 . 1 Special Weapon . | . . . . . . . . Impact Weapon . | . . . . . . . . Slashing Weapon 3 | . . . . . 3 . . Piercing Weapon . | . . . . . . . . Special Melee Weapon . | . . . . . . . . Unidentified Prototypes 7 | . . 1 1 . 4 . 1 Corrupted Parts 1 | . . . . . . . 1 System Corruption 1 | . . . . . . . 1 Parts Lost 23 | . 1 . 1 . 4 1 16 Power 2 | . . . . . . . 2 Propulsion 4 | . . . . . . 1 3 Utility 9 | . . . 1 . 3 . 5 Weapon 8 | . 1 . . . 1 . 6 Highest Loss Streak 12 | . 1 . 1 . 2 1 12 To Critical Strikes . | . . . . . . . . Average Backups 20 | 3 12 15 21 25 24 24 24 Power 1 | . . . . 1 1 3 2 Propulsion 4 | 1 6 6 4 4 3 3 2 Utility 6 | . 1 2 6 8 7 8 10 Weapon 8 | 1 4 7 8 12 11 10 9 Tool/Special . | . . . . . . . . Unused Backups 46 | . 7 . 13 1 7 . 18 Power 10 | . 2 . 2 . 4 . 2 Propulsion 6 | . 3 . 1 . . . 2 Utility 15 | . . . 4 1 3 . 7 Weapon 14 | . 2 . 6 . . . 6 Tool/Special 1 | . . . . . . . 1 Average Slot Usage (%) 98 | . 99 100 99 100 99 99 94 Engine 10 | . 14 14 11 11 10 . 5 Core 1 | . . . . . . 11 2 Treads 12 | . 27 28 21 2 . . . Wheel 10 | . . . . 19 22 21 17 Device 9 | . 13 14 1 10 8 16 14 Storage 11 | . 14 14 11 11 11 13 10 Protection 11 | . . . 20 11 13 2 16 Energy Gun 1 | . . . . . . . 10 Energy Cannon 1 | . . . 2 . . . 5 Ballistic Gun 23 | . 28 27 29 22 22 22 9 Ballistic Cannon 2 | . . . . 11 5 11 . Peak Build Rating 41 | 7 11 16 22 22 35 32 41 Average Rating 21 | 5 10 9 18 21 26 30 36 On Entrance 16 | . 7 11 10 22 22 31 31 Naked Turns . | . . . . . . . . Heaviest Build 119 | 14 30 30 112 112 112 106 119 Greatest Support 40 | 40 40 40 40 40 24 24 24 Greatest Overweight (x) 9 | 3 . . 5 4 8 8 9 Average Overweight (x) 2 | . . . 1 3 4 4 4 Largest Inventory Capacity 25 | 8 15 15 25 25 25 25 25 Average Capacity 21 | 7 13 15 23 25 25 25 25 Most Carried 25 | 5 15 15 25 25 25 25 25 Average Carried 20 | 3 12 15 21 25 24 24 24 Final Capacity 25 | 8 15 15 25 25 25 25 25 Final Carried 25 | 5 15 15 25 25 25 24 23 Class Distribution -------------------- 62% | Tank 29% | Mutant 5% | Gunner Dominant Class ---------------- Mutant | -10/Materials Mutant | -10/Mines Tank | -9/Materials Tank | -9/Mines Tank | -9/Exiles Gunner | -8/Mines Tank | -8/Materials Resources | -11 -10 -10 -9 -9 -9 -8 -8 ----------- Run | Yrd Mat Min Mat Min Exi Min Mat Matter Collected 3653 | 326 437 144 1028 49 827 312 530 Remotely . | . . . . . . . . Salvage Created 5086 | 165 434 22 1558 21 569 273 2044 Parts 333 | 10 18 7 98 3 64 13 120 Haulers Intercepted 13 | . 2 . 5 . . . 6 Recyclers Shooed 3 | . 1 . 1 1 . . . Parts Field Recycled . | . . . . . . . . Retrieved Matter . | . . . . . . . . Parts Self-Destructed . | . . . . . . . . Prevented . | . . . . . . . . Kills | -11 -10 -10 -9 -9 -9 -8 -8 ------- Run | Yrd Mat Min Mat Min Exi Min Mat Combat Hostiles Destroyed 95 | . 7 4 31 . 6 6 41 Melee 1 | . . . . . 1 . . Guns 56 | . 6 2 28 . . 4 16 Cannons 11 | . . . 3 . 1 2 5 AOE 25 | . 1 2 . . 4 . 18 Classes Destroyed 19 | 3 4 2 2 . 3 1 4 Worker 10 | 2 3 . 2 . . . 3 Builder 3 | . . . . . . 1 2 Tunneler 6 | 3 1 1 . 1 . . . Hauler 13 | . 2 . 5 . . . 6 Recycler 4 | 1 1 . . . . . 2 Mechanic 1 | . 1 . . . . . . Operator 3 | . 1 . 1 . . . 1 Turret 1 | . . . . . 1 . . Watcher 2 | . . . . . . . 2 Swarmer 21 | . . 3 6 . . . 12 Grunt 45 | . 7 . 14 . . 6 18 Duelist 2 | . . . 1 . . . 1 Protector 1 | . . . . . . . 1 Sentry 17 | . . . 10 . . . 7 Demolisher 1 | . . 1 . . . . . Hunter 1 | . . . . . . . 1 Heavy 1 | . . . . . . . 1 Zionite 8 | . . . . . 8 . . Assembled 5 | . . . . . 5 . . Best Kill Streak 10 | 5 10 3 3 1 6 3 10 Combat Bots Only 8 | . 4 3 3 . 5 3 8 Max Kills in Single Turn 7 | 1 7 2 2 1 2 1 3 Gunslinging 1 | . . . 1 . . . 1 Exploded 3 | . 1 2 . . 2 . 3 Melee 1 | . . . . . 1 . . Uniques/NPCs Destroyed 4 | . . . . . 4 . . 8R-AWN (-9/Exiles) EX-HEX (-9/Exiles) EX-DEC (-9/Exiles) EX-BIN (-9/Exiles) Combat | -11 -10 -10 -9 -9 -9 -8 -8 -------- Run | Yrd Mat Min Mat Min Exi Min Mat Hostile Shots Fired 452 | . 72 13 96 . 53 21 197 Missed 117 | . 23 3 25 . 10 3 53 Hits 335 | . 49 10 71 . 43 18 144 Melee 10 | . . . 3 . 1 . 6 Projectile 325 | . 49 10 68 . 42 18 138 Critical Strikes 26 | . 2 . 2 . 16 1 5 Damage Taken 5496 | . 641 99 962 . 983 289 2522 Core 934 | . 157 . 51 . 105 47 574 Absorbed by Shields 12 | . . . . . . . 12 Regen/Repaired (Parts) 338 | . 99 . 88 . . . 151 Core Remaining (%) 62 | 100 . 37 . . . 49 . Volleys Fired 313 | 14 44 8 82 4 58 18 85 Largest 3 | 2 2 2 3 1 3 3 3 Hottest 240 | 40 40 40 114 23 76 79 240 Shots Fired 764 | 28 88 16 246 4 132 46 204 Gun 653 | 28 88 15 220 4 109 32 157 Cannon 73 | . . . 26 . 2 14 31 Launcher 38 | . . 1 . . 21 . 16 Special . | . . . . . . . . Kinetic 580 | 28 88 15 227 4 111 46 61 Thermal 74 | . . . 19 . . . 55 Explosive 38 | . . 1 . . 21 . 16 Electromagnetic 72 | . . . . . . . 72 Robot Hit Streak 18 | 8 13 6 12 3 10 10 18 Robot Miss Streak 8 | 2 2 1 5 1 4 1 8 Penetration Max . | . . . . . . . . Secondary Targets 8 | . 1 . 3 . . . 4 Max Gunslinging Chain 1 | . 1 . 1 . . . 1 Shots Hit Robots 497 | 16 62 11 144 3 80 34 147 Core Hits 266 | 9 23 4 60 1 44 16 109 Critical Kills 2 | 1 . . . . 1 . . Critical Parts Destroyed 6 | 1 . . 1 . 4 . . Critical Strikes 13 | 2 . . 1 . 8 2 . Destroy 8 | 2 . . 1 . 5 . . Blast 2 | . . . . . . 2 . Sever 3 | . . . . . 3 . . Melee Attacks 26 | . . . . . 26 . . Impact . | . . . . . . . . Slashing 26 | . . . . . 26 . . Piercing . | . . . . . . . . Sneak Attacks . | . . . . . . . . Combat Hostiles . | . . . . . . . . Follow-up Attacks 5 | . . . . . 5 . . Damage Inflicted 12024 | 178 1656 337 2254 63 2280 601 4655 Guns 6397 | 178 759 140 1860 47 802 338 2273 Cannons 1058 | . . . 351 . 18 263 426 Explosions 3537 | . 883 148 . . 551 . 1955 Melee 909 | . . . . . 909 . . Ramming 123 | . 14 49 43 16 . . 1 Kinetic 5138 | 178 759 140 1971 47 820 601 622 Thermal 2425 | . 883 . 240 . . . 1302 Explosive 2306 | . . 148 . . 551 . 1607 Electromagnetic 1123 | . . . . . . . 1123 Impact . | . . . . . . . . Slashing 909 | . . . . . 909 . . Piercing . | . . . . . . . . Highest Corruption 3 | . 1 1 . . . . 3 Average Corruption 1 | . 1 1 . . . . 2 Corruption Purged . | . . . . . . . . Corruption Blocked . | . . . . . . . . Effects 35 | . 7 10 . . . . 18 Message Errors 10 | . 3 2 . . . . 5 Matter Fused 10 | . 2 3 . . . . 5 Heat Flow Errors 4 | . 1 1 . . . . 2 Energy Discharges 5 | . 1 1 . . . . 3 Parts Rejected 1 | . . . . . . . 1 Data Loss (minor) 1 | . . . . . . . 1 Misfires 2 | . . 1 . . . . 1 Alerts 2 | . . 2 . . . . . Overload Shots . | . . . . . . . . Overflow Damage 275 | . 96 37 . . 1 . 141 Projectiles . | . . . . . . . . Explosions 275 | . 96 37 . . 1 . 141 Melee . | . . . . . . . . Knockbacks 6 | . . . 1 . . 5 . Impact . | . . . . . . . . Kinetic 4 | . . . 1 . . 3 . Secondary 2 | . . . . . . 2 . Self-Inflicted Damage 410 | . . 31 . . 39 . 340 Shots 13 | . . 1 . . 2 . 10 Rammed 17 | . 3 5 6 1 . . 2 Targets Rammed 18 | . 3 6 6 1 . . 2 Kicked . | . . . . . . . . Crushed 1 | . . 1 . . . . . Highest Temperature 591 | . 132 223 314 . 304 11 591 Average Temperature 86 | . 32 113 76 . 77 7 110 Received Heat Transfer 1935 | . 396 . 378 . 9 180 972 Effects 12 | . . . 1 . . . 11 Interference 3 | . . . . . . . 3 Short Circuit 4 | . . . . . . . 4 Damage (minor) 2 | . . . 1 . . . 1 Damage (major) 3 | . . . . . . . 3 Siege Activations . | . . . . . . . . Martial Activations . | . . . . . . . . Shielding Activations . | . . . . . . . . Robots Disrupted . | . . . . . . . . Combat Hostiles . | . . . . . . . . Robots Corrupted 2 | . . . . . . . 2 Combat Hostiles 2 | . . . . . . . 2 Parts Fried 10 | . . . . . . . 10 Impact Corruptions . | . . . . . . . . Robots Melted . | . . . . . . . . Combat Hostiles . | . . . . . . . . Parts Melted 3 | . . . . . . . 3 Heat Transferred 3363 | . 650 . 398 . . . 2315 Parts Sabotaged . | . . . . . . . . Parts Stolen . | . . . . . . . . Parts Stripped . | . . . . . . . . Power Chain Reactions 7 | . . . . . . . 7 Alert | -11 -10 -10 -9 -9 -9 -8 -8 ------- Run | Yrd Mat Min Mat Min Exi Min Mat Maximum Alert Level 3 | . 1 . 2 . . . 3 Low Security (%) 80 | 100 91 100 61 100 . 100 71 Level 1 11 | . 8 . 26 . . . 5 Level 2 8 | . . . 11 . . . 22 Level 3 . | . . . . . . . . Level 4 . | . . . . . . . . Level 5 . | . . . . . . . . High Security . | . . . . . . . . Max Security . | . . . . . . . . Peak Influence 721 | 15 227 67 492 190 . 60 721 Initial 190 | . . . . 190 . . . Average 116 | 1 62 5 194 41 . 12 199 Influence Increases 3225 | 30 410 105 1145 10 . 145 1380 Destroy 0b10 Robot/C 1880 | . 140 80 740 . . 120 800 Destroy 0b10 Robot/NC 240 | 30 45 5 65 5 . 5 85 Destroy Leader 498 | . 44 10 218 . . 20 206 Allied During Kill 27 | . . 3 24 . . . . Successful Hack 123 | . 43 . 36 5 . . 39 Disable Machine 225 | . 120 . 30 . . . 75 Destroy Structure 127 | . 18 7 2 . . . 100 Partial Spotted 15 | . . . . . . . 15 Lose Combat Pursuer 90 | . . . 30 . . . 60 Influence Decreases 2504 | 30 410 105 655 500 . 145 659 Entered New Map 300 | . . . . 300 . . . Time Decay 1994 | 30 400 105 605 200 . 135 519 Lost Part 170 | . 10 . 10 . . 10 140 Lost Ally 40 | . . . 40 . . . . Squads Dispatched 13 | . 1 . 4 . . . 8 Investigation 2 | . . . 1 . . . 1 Extermination . | . . . . . . . . Reinforcement 7 | . 1 . 2 . . . 4 Assault 2 | . . . 1 . . . 1 Garrison 2 | . . . . . . . 2 Intercept . | . . . . . . . . Searches Triggered . | . . . . . . . . Construction Impeded 1 | . . . . . . . 1 Haulers Reinforced . | . . . . . . . . Active Scanning Responses . | . . . . . . . . Cargo Convoy Interrupts . | . . . . . . . . Stealth | -11 -10 -10 -9 -9 -9 -8 -8 --------- Run | Yrd Mat Min Mat Min Exi Min Mat Distress Signals 10 | . . 1 6 . . . 3 Communications Jammed . | . . . . . . . . Distress Signals . | . . . . . . . . Times Spotted 165 | . 20 4 50 . 20 6 65 Peak Tracking Total 9 | . 4 3 5 . 9 3 8 Tactical Retreats 8 | . . . 1 . 4 . 3 Traps | -11 -10 -10 -9 -9 -9 -8 -8 ------- Run | Yrd Mat Min Mat Min Exi Min Mat Traps Triggered 7 | . 1 . 4 . . . 2 Indirectly . | . . . . . . . . Trap Hack Attempts . | . . . . . . . . Triggered . | . . . . . . . . Disarmed . | . . . . . . . . Reprogrammed . | . . . . . . . . Reused . | . . . . . . . . Traps Extracted . | . . . . . . . . Installed . | . . . . . . . . Triggered . | . . . . . . . . Machines | -11 -10 -10 -9 -9 -9 -8 -8 ---------- Run | Yrd Mat Min Mat Min Exi Min Mat Machines Disabled 29 | . 8 . 2 . 14 . 5 Max in Single Turn 8 | . 8 . 1 . 2 . 1 Machines Repaired . | . . . . . . . . Machines Dismantled . | . . . . . . . . Machines Sabotaged . | . . . . . . . . Overloaded Fab Kills . | . . . . . . . . Hacking | -11 -10 -10 -9 -9 -9 -8 -8 --------- Run | Yrd Mat Min Mat Min Exi Min Mat Machines Accessed 33 | . 9 1 10 1 2 . 10 Terminals 23 | . 6 . 8 1 . . 8 Fabricators . | . . . . . . . . Repair Stations 4 | . 1 . 1 . . . 2 Recycling Units 3 | . 2 . 1 . . . . Scanalyzers . | . . . . . . . . Garrison Access . | . . . . . . . . Total Hacks 96 | . 33 1 24 2 2 . 34 Successful 47 | . 13 1 10 1 2 . 20 Failed 49 | . 20 . 14 1 . . 14 Catastrophic 9 | . 4 . 3 . . . 2 Database Lockouts . | . . . . . . . . Manual 50 | . 23 . 9 . 1 . 17 Terminals 74 | . 25 . 17 2 . . 30 Fabricators . | . . . . . . . . Repair Stations 9 | . 3 . 2 . . . 4 Recycling Units 10 | . 5 . 5 . . . . Scanalyzers . | . . . . . . . . Garrison Access . | . . . . . . . . Terminal Hacks 26 | . 8 1 6 1 2 . 8 Record 1 | . . . . . 1 . . Part Schematic 2 | . 2 . . . . . . Robot Analysis 4 | . 2 . 1 . . . 1 Prototype ID Bank 8 | . 1 . 4 . . . 3 Open Door 1 | . . 1 . . . . . Locate Traps 4 | . 2 . . . . . 2 Hauler Manifests 3 | . 1 . 1 . . . 1 Registered Components 1 | . . . . . . . 1 Zone Layout 1 | . . . . 1 . . . Proto ID Catalog 1 | . . . . . 1 . . Fabricator Hacks . | . . . . . . . . Repair Station Hacks 8 | . 2 . 2 . . . 4 Scan Component 4 | . 1 . 1 . . . 2 Repair 4 | . 1 . 1 . . . 2 Recycling Unit Hacks 2 | . 1 . 1 . . . . Retrieve Components 2 | . 1 . 1 . . . . Scanalyzer . | . . . . . . . . Garrison Access Hacks . | . . . . . . . . Unauthorized Hacks 11 | . 2 . 1 . . . 8 Terminals 8 | . . . . . . . 8 Botnet 2 | . . . . . . . 2 Operators 1 | . . . . . . . 1 Skim 5 | . . . . . . . 5 Fabricators . | . . . . . . . . Repair Stations . | . . . . . . . . Recycling Units 3 | . 2 . 1 . . . . Recyclers 1 | . 1 . . . . . . Mask 2 | . 1 . 1 . . . . Scanalyzers . | . . . . . . . . Garrison Access . | . . . . . . . . Data Cores Recovered 1 | . . . 1 . . . . Used . | . . . . . . . . Hacking Detections 29 | . 9 . 9 1 . . 10 Full Trace Events . | . . . . . . . . Feedback Events . | . . . . . . . . Feedback Blocked . | . . . . . . . . Robot Schematics Acquired . | . . . . . . . . Robots Built . | . . . . . . . . Authchips . | . . . . . . . . Time . | . . . . . . . . Total Robot Build Rating . | . . . . . . . . Part Schematics Acquired 2 | . 2 . . . . . . Parts Built . | . . . . . . . . Authchips . | . . . . . . . . Time . | . . . . . . . . Total Part Build Rating . | . . . . . . . . Parts Repaired 4 | . 1 . 1 . . . 2 Time 100 | . 26 . 26 . . . 48 Parts Recycled . | . . . . . . . . Recycled Matter . | . . . . . . . . Retrieved Matter . | . . . . . . . . Retrieved Components 4 | . 1 . 3 . . . . Parts Scanalyzed . | . . . . . . . . Part Schematics Acquired . | . . . . . . . . Parts Damaged . | . . . . . . . . Bothacking | -11 -10 -10 -9 -9 -9 -8 -8 ------------ Run | Yrd Mat Min Mat Min Exi Min Mat Used RIF Installer . | . . . . . . . . Robots Hacked . | . . . . . . . . Non-combat . | . . . . . . . . Combat . | . . . . . . . . Robot Hacks Applied . | . . . . . . . . Relay Couplers Released . | . . . . . . . . Fabnet Peak Effective % . | . . . . . . . . Robots Rewired . | . . . . . . . . Allies Hacked . | . . . . . . . . Hacks Repelled . | . . . . . . . . Allies | -11 -10 -10 -9 -9 -9 -8 -8 -------- Run | Yrd Mat Min Mat Min Exi Min Mat Total Allies 3 | . . 3 . . . . . Largest Group 3 | . . 3 3 . . . . Highest-Rated Group 40 | . . 40 40 . . . . Highest-Rated Ally 16 | . . 16 16 . . . . Total Orders . | . . . . . . . . Ally Attacks 52 | . . 4 48 . . . . Total Damage 593 | . . 42 551 . . . . Kills 11 | . . . 11 . . . . Allies Corrupted . | . . . . . . . . Allies Melted . | . . . . . . . . Intel | -11 -10 -10 -9 -9 -9 -8 -8 ------- Run | Yrd Mat Min Mat Min Exi Min Mat Active Infowar (turns) 6278 | 175 105 1462 368 944 1515 550 1159 Seismic 6278 | 175 105 1462 368 944 1515 550 1159 Robot Analysis Total 4 | . 2 . 1 . . . 1 Derelict Logs Recovered 3 | . . 2 . 1 . . . Drone Launches . | . . . . . . . . Drone Recoveries . | . . . . . . . . Exploration | -11 -10 -10 -9 -9 -9 -8 -8 ------------- Run | Yrd Mat Min Mat Min Exi Min Mat Turns Passed 13424 | 370 1417 1512 3406 973 2983 719 2044 Spaces Moved 6458 | 270 716 641 1050 609 1722 422 1028 Core 117 | 117 . . . . . . . Treads 2587 | 153 716 641 1050 26 . . 1 Legs . | . . . . . . . . Wheels 3754 | . . . . 583 1722 422 1027 Hover . | . . . . . . . . Flight . | . . . . . . . . Fastest Speed 50 | 50 160 160 160 150 150 150 150 Average Speed 173 | 117 160 160 284 157 150 150 150 Slowest Speed 560 | 200 160 160 560 320 210 210 465 Overloaded Moves . | . . . . . . . . Propulsion Burnouts . | . . . . . . . . Robots Hopped . | . . . . . . . . Potential Cave-ins . | . . . . . . . . Cave-ins Triggered . | . . . . . . . . Exploration Rate (%) 83 | 6 98 98 97 98 93 92 82 Regions Visited 7 Branch Regions 4 Pre-discovered Areas 3 | . . 2 . . 1 . . Known Exits Taken . | . . . . . . . . Unknown Exits Taken 7 | 1 1 1 1 1 1 1 . Scrap Searched 4 | . . 1 . 2 . 1 . Spaces Dug 21 | . . 11 . . . . 10 Terrain Destroyed 192 | . 20 11 . . 47 . 114 Melee . | . . . . . . . . Projectile 7 | . . . . . 7 . . AOE 185 | . 20 11 . . 40 . 114 Terrain Rammed . | . . . . . . . . Walls Destroyed . | . . . . . . . . Machines Disabled . | . . . . . . . . Actions | -11 -10 -10 -9 -9 -9 -8 -8 --------- Run | Yrd Mat Min Mat Min Exi Min Mat Total 8026 | 295 906 1107 1292 618 1986 468 1354 Wait 927 | . 102 442 76 . 114 22 171 Move 6451 | 269 715 640 1049 608 1721 421 1028 Hop . | . . . . . . . . Pick Up 99 | 5 20 1 27 1 24 . 21 Fast Attach 32 | 7 2 1 13 . 2 . 7 Attach 18 | . 3 . 2 . 5 1 7 Detach 5 | . 2 . . . 3 . . Swap 64 | . 4 6 13 3 16 6 16 Drop 78 | . 11 3 24 1 22 . 17 Fire 313 | 14 44 8 82 4 58 18 85 Melee 21 | . . . . . 21 . . Ram . | . . . . . . . . Kick . | . . . . . . . . Crush 18 | . 3 6 6 1 . . 2 Escape Stasis . | . . . . . . . . Rewire . | . . . . . . . . Trap . | . . . . . . . . Miscellaneous . | . . . . . . . . Route ------- -11/Scrapyard -10/Materials (discovered 4 exits: *Mat x3 / *Min) -10/Mines (discovered 3 exits: *Mat x2 / [*Sub]) -9/Materials (discovered 5 exits: *Mat x3 / *Min x2) -9/Mines (discovered 3 exits: *Mat x2 / *Exi) -9/Exiles (discovered 2 exits: [*Min x2]) -8/Mines -8/Materials (discovered 3 exits: [*Fac x3]) History --------- Turn | Location | Event 6 | -11/Scrapyard | Discovered new exit (range 12) 371 | -11/Scrapyard | Entered Materials 372 | -10/Materials | Build established: Mutant 586 | -10/Materials | Core integrity fell below 50% 951 | -10/Materials | Discovered new exit (range 11) 1119 | -10/Materials | Discovered new exit (range 5) 1167 | -10/Materials | Discovered new exit (range 13) 1177 | -10/Materials | Discovered new exit (range 12) 1594 | -10/Materials | Repaired Lgt. Treads 1788 | -10/Materials | Entered Mines 1853 | -10/Mines | Assembled infested the area 1858 | -10/Mines | Assisted by a Guerilla fighting off Assembled 2027 | -10/Mines | Discovered new exit (range 13) 2064 | -10/Mines | Discovered new exit (range 8) 2564 | -10/Mines | Learned location of Zion (-6) 2564 | -10/Mines | Assisted by bots powering up and referring to "LRC-V3" 2571 | -10/Mines | Learned location of Storage (-7) 2713 | -10/Mines | Found the Drone Emporium 2723 | -10/Mines | Found Prototype Device 2724 | -10/Mines | Identified Sensor Drone Bay 2949 | -10/Mines | Discovered new exit (range 7) 3300 | -10/Mines | Entered Materials 3300 | -9/Materials | Accompanied by 3 allies 3300 | -9/Materials | Evolved 2 slots: Utility x1, Weapon x1 3374 | -9/Materials | Repaired Assault Rifle 3577 | -9/Materials | Discovered new exit (range 5) 3702 | -9/Materials | Build established: Tank 3707 | -9/Materials | Discovered new exit (range 12) 3993 | -9/Materials | Discovered new exit (range 16) 4985 | -9/Materials | Discovered new exit (range 16) 6199 | -9/Materials | Discovered new exit (range 16) 6500 | -9/Materials | First assault squad dispatched 6706 | -9/Materials | Entered Mines 6842 | -9/Mines | Learned Materials terminal intel 6867 | -9/Mines | Discovered new exit (range 10) 6882 | -9/Mines | Discovered new exit (range 9) 7139 | -9/Mines | Deemed a non-threat by the Exiles lab entrance 7334 | -9/Mines | Found a hidden stash of uninstalled traps 7673 | -9/Mines | Discovered new exit (range 5) 7679 | -9/Mines | Entered Exiles 7715 | -9/Exiles | Met 8R-AWN 7741 | -9/Exiles | Met EX-HEX 7783 | -9/Exiles | Met EX-BIN 7801 | -9/Exiles | Aligned with FarCom system 7802 | -9/Exiles | Given EX-Vault access code 7838 | -9/Exiles | Opened EX-Vault 7856 | -9/Exiles | Found Trap Reconfigurator 7885 | -9/Exiles | Warned to stay clear of 0b10 Research branches 7933 | -9/Exiles | Met EX-DEC 8033 | -9/Exiles | Visited The Gauntlet 8243 | -9/Exiles | Discovered new exit (range 11) 8402 | -9/Exiles | Discovered new exit (range 15) 9194 | -9/Exiles | Attacked by the Exiles 9333 | -9/Exiles | Destroyed 8R-AWN 9351 | -9/Exiles | Found Prototype Device 9351 | -9/Exiles | Identified AS-neutralizer No. 17b 9370 | -9/Exiles | Found Prototype Processor 9373 | -9/Exiles | Found Prototype Ballistic Gun 9426 | -9/Exiles | Identified 8R-AWN's Boregun 9786 | -9/Exiles | Destroyed EX-HEX 10005 | -9/Exiles | Destroyed EX-DEC 10015 | -9/Exiles | Destroyed EX-BIN 10456 | -9/Exiles | Found Prototype Processor 10471 | -9/Exiles | Found Prototype Device 10510 | -9/Exiles | Build established: Mutant 10662 | -9/Exiles | Entered Mines 10986 | -8/Mines | Core integrity fell below 50% 11145 | -8/Mines | Build established: Gunner 11311 | -8/Mines | Discovered new exit (range 8) 11381 | -8/Mines | Entered Materials 11381 | -8/Materials | Evolved 2 slots: Utility x2 11382 | -8/Materials | Loaded intel: 11 terminal locations 11877 | -8/Materials | Build established: Scavenger-Tank 12002 | -8/Materials | Repaired Med. Armor Plating 12218 | -8/Materials | Build established: Tank 12645 | -8/Materials | Repaired Arm. Wheel 12720 | -8/Materials | Discovered new exit (range 15) 13006 | -8/Materials | Discovered new exit (range 15) 13312 | -8/Materials | Garrison activated, responded to threat 13381 | -8/Materials | First assault squad dispatched 13392 | -8/Materials | Discovered new exit (range 15) 13410 | -8/Materials | Core integrity fell below 50% 13421 | -8/Materials | Core integrity fell below 20% 13425 | -8/Materials | Destroyed self with Mini Grenade Launcher Last Messages --------------- 13412_ Mni. Grenade Launcher destroyed. 13412_ Destroyed Mni. Grenade Launcher. 13414_ K-01 Serf collects debris. 13415_ W-25 Informer destroyed. 13417_ K-01 Serf collects debris. 13417_ U-05 Engineer lays Concrete. 13419_ G-50 Soldier destroyed. 13419_ K-01 Serf destroyed. 13420_ ALERT: Construction progress impeded, dispatching reinforcements to local area. 13421_ K-01 Serf collects debris. 13421_ G-47 Trooper destroyed. 13422_ O TLX2CC%KJ6|VBHKHC&FTDDUATXQCWRG8 8MBM 13422_ U-05 Engineer lays Concrete. 13423_ The unstable cave ceiling collapses. 13423_ Cold Fusion Reactor destroyed. 13423_ Destroyed Cold Fusion Reactor. 13423_ G-47 Trooper destroyed. 13423_ U-05 Engineer builds a Wall. 13424_ K-01 Serf collects debris. Map ----- +----------------------------------------------------+ | ????#######??# #???????????????????????????????? | | ##### #### #???????????????????????????????? | | #???????????????????????????????? | | #??????""???????????????????????? | | #??????T"???????????????????????? | | ##### ########??????""???????????????????????? | | ????## ##??????????????????????????????????????? | | ?????# #???????????????????????????????????????? | | ?????# #???????????????????????????????????????? | | ?????# ##########??????????????????????????????? | | ?????# # #??????????????????????????????? | | ?????# # #??????????????????????????????? | | ?????# # #??????????????"""""???????????? | | ?????# # #??????????????""T""???????????? | | ?????# # #??????????????????????????????? | | ?????# # #??????????????????????????????? | | ?????# + #???##??##?????????????????????? | | ?????# % # #???# ## ##?#??????????????????? | | ?????# # #?### # #??????????????????? | | ????## ##########?# # #??????????????????? | | ##### #?????????# # #####??????????????? | | ########### ######?????????? | | = ! % *!! ????????? | | g = | = * < ????????? | | ##### k! %== = u ????????? | | ###### ########### @ # ###????????????? | | * ?# # [ #?# =[ # ##??????????????? | | # o# ! !#?## g[%* # ????????????????? | | !!! + + = #?# [ " " # #???????????????? | | !!! # # # "G" # #???????????????? | | !! + # #### """ ## #???????????????? | | # #?#######??## #? #???????????????? | | +##### ###########?######### #???????????????? | | # # T #?????????# #???????????????? | | # # % #?????????# #???????????????? | | + # #?????????# #???????????????? | | ! # # #?????????+ +???????????????? | | + + """ """ #]????????# #???????????????? | | # # """ """ #?????????# #???????????????? | | # # """ """ #?????????# #???????????????? | | # # #?????????# #???????????????? | | + ###########?######### #########???????? | | ########+#???????????#* = != # ## #???????? | | ?????? ??????????# = + ## #???????? | | ?????# / #????????# # ## #???????? | | ?????# #????????######### ## #???????? | | ?????#!]] #?################ ## """ #???????? | | ?????#!] #?# * # # """ #???????? | | ?????#]] #?# T # # """ #???????? | | ?????########?#[! """"" + # """ #???????? | +----------------------------------------------------+ Best States ------------- Heat Dissipation 53 Energy Generation 19 Energy Capacity 280 Matter Stores 500 Matter Capacity 500 Sight Range 16 Terrain Scan Density 10 Armor Coverage 525 Evasion (%) 50 Recoil Reduction 2 Item Schematics ----------------- Cargo Storage Unit | -10/Materials | Hacked Huge Storage Unit | -10/Materials | Hacked Robot Schematics ------------------ None Fabricated ------------ Nothing Repaired ---------- Lgt. Treads | 29% | -10/Materials Assault Rifle | 12% | -9/Materials Med. Armor Plating | 15% | -8/Materials Arm. Wheel | 51% | -8/Materials Alien Tech Used ----------------- None Achievements -------------- None Challenges ------------ None Game ------ Seed CloakingShadingPit Manual? 0 Play Time 01:09:22 Cumulative 574.9 hours Start 2025.08.06 @ 14:13:29 End 2025.08.09 @ 14:17:13 Sessions 4 Manual Loads 0 Difficulty Rogue Special Mode None Game No. 242 Rogue 242 Adventurer 0 Explorer 0 Win Type - Total 27 Types 9/4/7/2/1/0/1/1/1/1 Lore% 92 Gallery% 87 Achievement% 81 Wizard Run 0 Options --------- Layout 0 ASCII 0 Keyboard 1 Movement Arrows Keybinds 0 Fullscreen 2 Font 18/SmallcapsGlow Map View 76x50 Zoom Use 0% Tactical HUD 1 Map Filters NONE Filters NONE Steam 1 RUN: b746a41c-e1d4-4d56-a590-a2bea09ce544